[Event "Catalan Youth-ch 2020"]
[Site "Salou"]
[Date "2020.09.07"]
[Round "4.2"]
[White "Sole Pijuan, Ferran"]
[Black "Pera Muntasell, Marc"]
[Result "1-0"]
[ECO "E45"]
[WhiteElo "2127"]
[BlackElo "1890"]
[Annotator "NA"]
[PlyCount "61"]
[EventDate "2020.09.07"]
[EventType "swiss"]
[EventCountry "ESP"]
[SourceTitle "playchess.com"]
[Source "ChessBase"]
[SourceQuality "1"]
[TimeControl "5400+30"]

1. d4 {[%emt 0:00:00]} Nf6 {[%emt 0:00:00]} 2. c4 {[%emt 0:00:11]} e6 3. Nc3 {[%emt 0:00:00]} Bb4 {[%emt 0:00:00]} 4. e3 {[%emt 0:00:04]} b6 {[%emt 0:00:00]} 5. Nge2 {[%emt 0:00:20]} Ba6 {[%emt 0:00:25]} 6. a3 {[%emt 0:00:42]} Be7 {[%emt 0:00:14]} 7. Nf4 {[%emt 0:04:10]} O-O {[%emt 0:03:18]} 8. Bd3 {[%emt 0:04:25]} Nc6 {[%emt 0:05:52]} 9. O-O {[%emt 0:09:54]} e5 {[%emt 0:02:14]} 10. Nfe2 {[%emt 0:06:02]} e4 {[%emt 0:11:08]} 11. Nxe4 {[%emt 0:00:00]} Nxe4 {[%emt 0:00:25]} 12. Bxe4 {[%emt 0:00:00]} Bxc4 {[%emt 0:00:25]} 13. Bxh7+ {[%emt 0:00:00]} Kxh7 {[%emt 0:02:52]} 14. Qc2+ {[%emt 0:03:29]} g6 {[%emt 0:06:32]} 15. Qxc4 {[%emt 0:00:00]} Kg7 {[%emt 0:09:04]} 16. e4 Rh8 {[%emt 0:09:49]} 17. f4 {[%emt 0:10:42]} Na5 {[%emt 0:00:00]} 18. Qc3 {[%emt 0:05:38]} f6 {[%emt 0:05:56]} 19. f5 {[%emt 0:04:53]} g5 {[%emt 0:02:50]} 20. e5 {[%emt 0:01:52]} Rh5 {[%emt 0:00:00]} 21. Ng3 {[%emt 0:00:00]} Rh7 {[%emt 0:11:13]} 22. Bxg5 {[%emt 0:09:22]} Kf7 {[%emt 0:02:06]} 23. Bf4 {[%emt 0:00:00]} c5 {[%emt 0:05:29]} 24. Qf3 {[%emt 0:02:30]} cxd4 {[%emt 0:02:52]} 25. Qd5+ {[%emt 0:00:34]} Kf8 {[%emt 0:02:55]} 26. Ne4 {[%emt 0:01:18]} Nc6 {[%emt 0:02:50]} 27. exf6 {[%emt 0:05:12]} Bxf6 {[%emt 0:00:55]} 28. Qd6+ {[%emt 0:00:49]} Be7 {[%emt 0:01:07]} 29. Qg6 {[%emt 0:00:13]} Rf7 {[%emt 0:03:14]} 30. Bh6+ {[%emt 0:00:07]} Ke8 {[%emt 0:00:09]} 31. Qg8+ {[%emt 0:02:04]} 1-0

[Event "Catalan Youth-ch 2020"]
[Site "Salou"]
[Date "2020.09.07"]
[Round "4.3"]
[White "Garcia Escoda, Marc"]
[Black "Toquero Gracia, Pau"]
[Result "1-0"]
[ECO "A15"]
[WhiteElo "2054"]
[BlackElo "2066"]
[Annotator "NA"]
[PlyCount "75"]
[EventDate "2020.09.07"]
[EventType "swiss"]
[EventCountry "ESP"]
[SourceTitle "playchess.com"]
[Source "ChessBase"]
[SourceQuality "1"]
[TimeControl "5400+30"]

1. c4 {[%emt 0:00:00]} Nf6 {[%emt 0:00:00]} 2. g3 {[%emt 0:00:00]} c6 {[%emt 0:00:03]} 3. Bg2 {[%emt 0:00:00]} d6 {[%emt 0:00:15]} 4. Nc3 {[%emt 0:00:00]} Nbd7 {[%emt 0:00:24]} 5. d3 {[%emt 0:00:31]} e5 {[%emt 0:00:05]} 6. e4 {[%emt 0:00:40]} Be7 {[%emt 0:00:29]} 7. Nge2 {[%emt 0:00:20]} h5 {[%emt 0:00:55]} 8. h3 {[%emt 0:07:18]} b6 {[%emt 0:04:24]} 9. O-O {[%emt 0:00:54]} Bb7 {[%emt 0:00:03]} 10. d4 {[%emt 0:02:31]} Qc7 {[%emt 0:02:07]} 11. Be3 {[%emt 0:07:02]} a6 {[%emt 0:08:55]} 12. Rc1 {[%emt 0:28:25]} exd4 {[%emt 0:16:11]} 13. Nxd4 {[%emt 0:00:00]} Ne5 {[%emt 0:01:21]} 14. b3 {[%emt 0:00:00]} c5 {[%emt 0:00:15]} 15. Nf5 {[%emt 0:00:00]} Bf8 {[%emt 0:26:40]} 16. f4 {[%emt 0:15:56]} Ned7 {[%emt 0:20:19]} 17. e5 {[%emt 0:00:19]} Bxg2 {[%emt 0:00:00]} 18. exf6 {[%emt 0:04:57]} g6 {[%emt 0:00:00]} 19. Kxg2 {[%emt 0:01:13]} gxf5 {[%emt 0:00:00]} 20. Qd5 {[%emt 0:01:11]} O-O-O {[%emt 0:00:00]} 21. Qxf5 {[%emt 0:00:14]} Re8 {[%emt 0:03:17]} 22. Nd5 {[%emt 0:01:42]} Qd8 {[%emt 0:00:03]} 23. Rce1 {[%emt 0:01:02]} Re6 {[%emt 0:01:29]} 24. Bd2 {[%emt 0:00:27]} Qe8 {[%emt 0:00:16]} 25. Bc3 {[%emt 0:03:40]} Rh6 {[%emt 0:10:45]} 26. g4 {[%emt 0:02:45]} hxg4 {[%emt 0:00:00]} 27. hxg4 {[%emt 0:01:19]} Re2+ {[%emt 0:00:00]} 28. Kg3 {[%emt 0:02:38]} Kb8 {[%emt 0:02:54]} 29. Qd3 {[%emt 0:03:08]} Rhh2 {[%emt 0:01:28]} 30. Rxe2 {[%emt 0:01:34]} Rxe2 {[%emt 0:00:03]} 31. Ne7 {[%emt 0:00:30]} Rxe7 {[%emt 0:01:28]} 32. Qxd6+ {[%emt 0:00:16]} Kb7 {[%emt 0:00:10]} 33. fxe7 {[%emt 0:01:18]} Bxe7 {[%emt 0:00:01]} 34. Qd5+ {[%emt 0:00:07]} Ka7 {[%emt 0:00:26]} 35. Rd1 {[%emt 0:01:51]} Nf8 {[%emt 0:00:02]} 36. Bg7 {[%emt 0:04:28]} Bh4+ {[%emt 0:01:10]} 37. Kxh4 {[%emt 0:01:07]} Ng6+ {[%emt 0:00:04]} 38. Kg3 {[%emt 0:01:36]} 1-0

[Event "Catalan Youth-ch 2020"]
[Site "Salou"]
[Date "2020.09.07"]
[Round "4.3"]
[White "Llonch Farres, Gerard"]
[Black "Vinuesa Sorli, Ruben"]
[Result "0-1"]
[ECO "C45"]
[WhiteElo "1720"]
[BlackElo "1903"]
[Annotator "NA"]
[PlyCount "68"]
[EventDate "2020.09.07"]
[EventType "swiss"]
[EventCountry "ESP"]
[SourceTitle "playchess.com"]
[Source "ChessBase"]
[SourceQuality "1"]
[TimeControl "5400+30"]

1. e4 {[%emt 0:00:00]} e5 {[%emt 0:00:00]} 2. Nf3 {[%emt 0:00:00]} Nc6 {[%emt 0:00:00]} 3. d4 {[%emt 0:00:00]} exd4 {[%emt 0:00:04]} 4. Nxd4 {[%emt 0:00:00]} Qf6 {[%emt 0:00:13]} 5. Nxc6 {[%emt 0:00:16]} Bc5 {[%emt 0:00:10]} 6. Qf3 {[%emt 0:00:14]} dxc6 {[%emt 0:00:10]} 7. Nc3 {[%emt 0:00:47]} Be6 {[%emt 0:00:26]} 8. Bd3 {[%emt 0:02:01]} O-O-O {[%emt 0:01:41]} 9. Qg3 {[%emt 0:02:36]} h5 {[%emt 0:01:18]} 10. h4 {[%emt 0:02:02]} Bd6 {[%emt 0:04:27]} 11. f4 {[%emt 0:01:48]} Bb4 {[%emt 0:03:01]} 12. Bd2 {[%emt 0:03:54]} Bg4 {[%emt 0:01:17]} 13. O-O {[%emt 0:05:01]} Ne7 {[%emt 0:08:18]} 14. a3 {[%emt 0:03:07]} Bc5+ {[%emt 0:01:10]} 15. Kh2 {[%emt 0:00:22]} Ng6 {[%emt 0:01:25]} 16. e5 {[%emt 0:08:23]} Qxh4+ {[%emt 0:03:57]} 17. Qxh4 {[%emt 0:00:11]} Nxh4 {[%emt 0:00:02]} 18. f5 {[%emt 0:06:56]} g6 {[%emt 0:04:24]} 19. Bg5 {[%emt 0:03:37]} Bxf5 {[%emt 0:04:12]} 20. Bxh4 {[%emt 0:03:39]} Bxd3 {[%emt 0:00:52]} 21. Rf3 {[%emt 0:01:56]} Bxc2 {[%emt 0:02:55]} 22. Bxd8 {[%emt 0:02:13]} Rxd8 {[%emt 0:00:40]} 23. Re1 {[%emt 0:02:15]} Bf5 {[%emt 0:01:04]} 24. Ne2 {[%emt 0:10:04]} Be7 {[%emt 0:05:08]} 25. Ng3 {[%emt 0:04:16]} Bh4 {[%emt 0:01:43]} 26. Ref1 {[%emt 0:03:38]} Bxg3+ {[%emt 0:01:07]} 27. Kxg3 {[%emt 0:00:33]} Rd2 {[%emt 0:01:00]} 28. R1f2 {[%emt 0:00:52]} Rd5 {[%emt 0:00:16]} 29. Rxf5 {[%emt 0:05:29]} gxf5 {[%emt 0:01:09]} 30. Rxf5 {[%emt 0:00:20]} Rd3+ {[%emt 0:01:10]} 31. Rf3 {[%emt 0:02:10]} Rxf3+ {[%emt 0:00:49]} 32. Kxf3 {[%emt 0:01:37]} Kd7 {[%emt 0:00:08]} 33. g3 {[%emt 0:01:27]} Ke6 {[%emt 0:00:07]} 34. Ke4 {[%emt 0:00:05]} a5 {[%emt 0:00:05]} 0-1

[Event "Catalan Youth-ch 2020"]
[Site "Salou"]
[Date "2020.09.07"]
[Round "4.4"]
[White "Masague Artero, Guerau"]
[Black "Dominguez Laguna, Eduard"]
[Result "1-0"]
[ECO "A25"]
[WhiteElo "2320"]
[BlackElo "1949"]
[Annotator "ChessBase"]
[PlyCount "89"]
[EventDate "2020.09.07"]
[EventType "swiss"]
[EventCountry "ESP"]
[SourceTitle "playchess.com"]
[Source "ChessBase"]
[SourceQuality "1"]
[TimeControl "5400+30"]

1. c4 {[%emt 0:00:00]} e5 {[%emt 0:00:00]} 2. Nc3 {[%emt 0:00:00]} Nc6 {[%emt 0:00:00]} 3. e3 {[%emt 0:04:35]} Bb4 {[%emt 0:03:54]} 4. Nd5 {[%emt 0:00:27]} Nf6 {[%emt 0:01:34]} 5. a3 {[%emt 0:01:20]} Bd6 {[%emt 0:02:29]} 6. Nc3 {[%emt 0:00:07]} O-O {[%emt 0:01:37]} 7. d3 {[%emt 0:04:38]} Re8 {[%emt 0:02:51]} 8. Nf3 {[%emt 0:00:10]} b6 {[%emt 0:04:03]} 9. Be2 {[%emt 0:01:04]} Bb7 {[%emt 0:00:48]} 10. O-O {[%emt 0:01:06]} a6 {[%emt 0:05:37]} 11. e4 {[%emt 0:09:39]} h6 {[%emt 0:02:13]} 12. Nd5 {[%emt 0:10:15]} Bf8 {[%emt 0:12:22]} 13. Re1 {[%emt 0:02:05]} Bc5 {[%emt 0:09:13]} 14. b4 {[%emt 0:02:55]} Bd4 {[%emt 0:01:47]} 15. Rb1 {[%emt 0:03:48]} b5 {[%emt 0:01:57]} 16. Bf1 {[%emt 0:17:47]} d6 {[%emt 0:03:22]} 17. Nxd4 {[%emt 0:01:35]} Nxd4 {[%emt 0:01:50]} 18. Bb2 {[%emt 0:01:06]} Ne6 {[%emt 0:04:08]} 19. d4 {[%emt 0:07:20]} c6 {[%emt 0:16:09]} 20. dxe5 {[%emt 0:07:07]} dxe5 {[%emt 0:01:36]} 21. Ne3 {[%emt 0:00:39]} Nd4 {[%emt 0:01:57]} 22. f3 {[%emt 0:00:16]} Qd7 {[%emt 0:07:16]} 23. Bxd4 {[%emt 0:00:55]} exd4 {[%emt 0:00:20]} 24. Nf5 {[%emt 0:00:27]} Rad8 {[%emt 0:01:09]} 25. c5 {[%emt 0:02:28]} Qe6 {[%emt 0:03:17]} 26. Bd3 {[%emt 0:00:43]} Qe5 {[%emt 0:00:52]} 27. Qd2 {[%emt 0:00:39]} Bc8 {[%emt 0:03:13]} 28. f4 {[%emt 0:00:40]} Qc7 {[%emt 0:01:08]} 29. Nd6 {[%emt 0:00:05]} Re7 {[%emt 0:00:24]} 30. Bc2 {[%emt 0:02:15]} Qd7 {[%emt 0:02:40]} 31. Qd3 {[%emt 0:00:35]} g6 {[%emt 0:00:59]} 32. Qxd4 {[%emt 0:00:13]} Re6 {[%emt 0:02:12]} 33. Bb3 {[%emt 0:00:35]} Rxd6 {[%emt 0:00:15]} 34. cxd6 {[%emt 0:00:09]} Nh5 {[%emt 0:01:17]} 35. e5 {[%emt 0:00:25]} Qg4 {[%emt 0:00:42]} 36. Rf1 {[%emt 0:00:16]} Bf5 {[%emt 0:00:52]} 37. Rbc1 {[%emt 0:02:00]} g5 {[%emt 0:00:26]} 38. Bd1 {[%emt 0:00:18]} Qh4 {[%emt 0:00:56]} 39. Bxh5 {[%emt 0:00:03]} Qxh5 {[%emt 0:00:14]} 40. fxg5 {[%emt 0:00:55]} Be6 {[%emt 0:00:39]} 41. Rxc6 {[%emt 0:00:16]} Qxg5 {[%emt 0:00:29]} 42. Rc3 {[%emt 0:00:07]} Kf8 {[%emt 0:00:57]} 43. Qf4 {[%emt 0:00:09]} Qh5 {[%emt 0:00:38]} 44. Qf6 {[%emt 0:00:06]} Ke8 {[%emt 0:00:48]} 45. Qe7# {[%emt 0:00:03]} 1-0

[Event "Catalan Youth-ch 2020"]
[Site "Salou"]
[Date "2020.09.07"]
[Round "4.4"]
[White "Aleksanyan Israilyan, Nicolas"]
[Black "Salinas Tomas, Daniel"]
[Result "0-1"]
[ECO "B53"]
[WhiteElo "1808"]
[BlackElo "1979"]
[Annotator "NA"]
[PlyCount "66"]
[EventDate "2020.09.07"]
[EventType "swiss"]
[EventCountry "ESP"]
[SourceTitle "playchess.com"]
[Source "ChessBase"]
[SourceQuality "1"]
[TimeControl "5400+30"]

1. e4 {[%emt 0:01:36]} c5 {[%emt 0:00:00]} 2. Nf3 {[%emt 0:00:14]} d6 {[%emt 0:00:00]} 3. d4 {[%emt 0:00:11]} cxd4 {[%emt 0:00:03]} 4. Qxd4 {[%emt 0:00:41]} Nc6 {[%emt 0:00:31]} 5. Qe3 {[%emt 0:00:15]} g6 {[%emt 0:01:49]} 6. c4 {[%emt 0:02:37]} Bg7 {[%emt 0:00:24]} 7. Be2 {[%emt 0:02:36]} Nf6 {[%emt 0:00:45]} 8. h3 {[%emt 0:00:15]} O-O {[%emt 0:00:50]} 9. O-O {[%emt 0:00:31]} b6 {[%emt 0:02:40]} 10. a3 {[%emt 0:00:42]} Bb7 {[%emt 0:01:21]} 11. Nc3 {[%emt 0:00:35]} Na5 {[%emt 0:03:42]} 12. Nd2 {[%emt 0:01:04]} Rc8 {[%emt 0:02:51]} 13. b4 {[%emt 0:01:00]} Nc6 {[%emt 0:01:35]} 14. Bb2 {[%emt 0:05:07]} Nd7 {[%emt 0:01:14]} 15. Na4 {[%emt 0:03:10]} Nf6 {[%emt 0:06:30]} 16. Nc3 {[%emt 0:03:03]} Rc7 {[%emt 0:06:51]} 17. f4 {[%emt 0:01:47]} h5 {[%emt 0:05:47]} 18. g4 {[%emt 0:02:28]} Nxg4 {[%emt 0:02:13]} 19. hxg4 {[%emt 0:00:25]} Bd4 {[%emt 0:00:11]} 20. Nd5 {[%emt 0:02:38]} Bxe3+ {[%emt 0:00:24]} 21. Nxe3 {[%emt 0:00:09]} hxg4 {[%emt 0:03:49]} 22. Kg2 {[%emt 0:00:13]} f6 {[%emt 0:01:52]} 23. Nd5 {[%emt 0:00:26]} Kg7 {[%emt 0:01:35]} 24. Nxc7 {[%emt 0:01:42]} Qxc7 {[%emt 0:00:01]} 25. Bxg4 {[%emt 0:00:30]} e5 {[%emt 0:02:21]} 26. f5 {[%emt 0:01:12]} Ne7 {[%emt 0:00:39]} 27. fxg6 {[%emt 0:01:04]} f5 {[%emt 0:00:41]} 28. Bh3 {[%emt 0:01:26]} fxe4 {[%emt 0:01:09]} 29. Be6 {[%emt 0:00:49]} Nxg6 {[%emt 0:03:20]} 30. Rxf8 {[%emt 0:00:35]} Nxf8 {[%emt 0:00:32]} 31. Bf5 {[%emt 0:00:15]} e3+ {[%emt 0:01:52]} 32. Ne4 {[%emt 0:00:18]} Qf7 {[%emt 0:00:37]} 33. Rf1 {[%emt 0:00:40]} e2 {[%emt 0:00:31]} 0-1

[Event "Catalan Youth-ch 2020"]
[Site "Salou"]
[Date "2020.09.07"]
[Round "4.5"]
[White "Martin Barcelo, Carles"]
[Black "Travesset Sagre, Jan"]
[Result "1/2-1/2"]
[ECO "B13"]
[WhiteElo "2202"]
[BlackElo "2093"]
[Annotator "ChessBase"]
[PlyCount "60"]
[EventDate "2020.09.07"]
[EventType "swiss"]
[EventCountry "ESP"]
[SourceTitle "playchess.com"]
[Source "ChessBase"]
[SourceQuality "1"]
[TimeControl "5400+30"]

1. e4 {[%emt 0:00:00]} c6 {[%emt 0:00:00]} 2. d4 {[%emt 0:00:00]} d5 {[%emt 0:00:00]} 3. exd5 {[%emt 0:00:08]} cxd5 {[%emt 0:00:00]} 4. Bd3 {[%emt 0:00:06]} Nc6 {[%emt 0:00:00]} 5. c3 {[%emt 0:00:04]} Nf6 {[%emt 0:00:00]} 6. Bf4 {[%emt 0:00:04]} Bg4 {[%emt 0:00:00]} 7. Qb3 {[%emt 0:00:05]} Qd7 {[%emt 0:00:01]} 8. Nd2 {[%emt 0:00:06]} e6 {[%emt 0:00:04]} 9. Ngf3 {[%emt 0:00:05]} Bxf3 {[%emt 0:00:04]} 10. Nxf3 {[%emt 0:00:05]} Bd6 {[%emt 0:00:03]} 11. Bxd6 {[%emt 0:02:57]} Qxd6 {[%emt 0:00:08]} 12. O-O {[%emt 0:00:09]} Rb8 {[%emt 0:00:04]} 13. Rae1 {[%emt 0:05:35]} Nd7 {[%emt 0:00:05]} 14. Re3 {[%emt 0:03:58]} O-O {[%emt 0:07:51]} 15. Qc2 {[%emt 0:12:01]} g6 {[%emt 0:16:08]} 16. h4 {[%emt 0:05:30]} e5 {[%emt 0:03:48]} 17. dxe5 {[%emt 0:03:20]} Ndxe5 {[%emt 0:00:16]} 18. Nxe5 {[%emt 0:06:40]} Nxe5 {[%emt 0:00:01]} 19. Be2 {[%emt 0:01:06]} f5 {[%emt 0:15:00]} 20. f4 {[%emt 0:11:06]} Nd7 {[%emt 0:10:26]} 21. Bf3 {[%emt 0:06:31]} Rfe8 {[%emt 0:06:50]} 22. Rd3 {[%emt 0:10:01]} Nb6 {[%emt 0:09:50]} 23. Qd2 {[%emt 0:04:19]} Qe7 {[%emt 0:06:49]} 24. h5 {[%emt 0:10:57]} Rbd8 {[%emt 0:00:46]} 25. Bxd5+ {[%emt 0:00:58]} Nxd5 {[%emt 0:00:05]} 26. Rxd5 {[%emt 0:00:02]} Qc5+ {[%emt 0:00:05]} 27. Rd4 {[%emt 0:00:04]} Re4 {[%emt 0:00:18]} 28. Rd1 {[%emt 0:00:20]} Rdxd4 {[%emt 0:04:21]} 29. cxd4 {[%emt 0:00:01]} Qd6 {[%emt 0:00:13]} 30. hxg6 {[%emt 0:13:06]} hxg6 {[%emt 0:00:01]} 1/2-1/2

[Event "Catalan Youth-ch 2020"]
[Site "Salou"]
[Date "2020.09.07"]
[Round "4.5"]
[White "Domene Mulyukov, Alexander"]
[Black "Valero Roca, Roger"]
[Result "1-0"]
[ECO "B30"]
[WhiteElo "1931"]
[BlackElo "1377"]
[Annotator "NA"]
[PlyCount "53"]
[EventDate "2020.09.07"]
[EventType "swiss"]
[EventCountry "ESP"]
[SourceTitle "playchess.com"]
[Source "ChessBase"]
[SourceQuality "1"]
[TimeControl "5400+30"]

1. e4 {[%emt 0:00:00]} c5 {[%emt 0:00:00]} 2. Nf3 {[%emt 0:00:00]} Nc6 {[%emt 0:00:27]} 3. Bb5 {[%emt 0:00:06]} e6 {[%emt 0:00:48]} 4. O-O {[%emt 0:00:19]} Nge7 {[%emt 0:00:42]} 5. Nc3 {[%emt 0:00:28]} a6 {[%emt 0:01:47]} 6. Bxc6 {[%emt 0:02:48]} bxc6 {[%emt 0:00:38]} 7. d3 {[%emt 0:02:48]} d5 {[%emt 0:01:14]} 8. Nd2 {[%emt 0:01:36]} g6 {[%emt 0:01:23]} 9. f4 {[%emt 0:01:43]} Bg7 {[%emt 0:02:15]} 10. e5 {[%emt 0:02:41]} O-O {[%emt 0:03:04]} 11. Nf3 {[%emt 0:02:59]} Qb6 {[%emt 0:03:48]} 12. Kh1 {[%emt 0:04:11]} Nf5 {[%emt 0:03:09]} 13. b3 {[%emt 0:02:26]} a5 {[%emt 0:06:00]} 14. Na4 {[%emt 0:00:45]} Qa7 {[%emt 0:01:11]} 15. g4 {[%emt 0:08:07]} Nh6 {[%emt 0:04:59]} 16. Ba3 {[%emt 0:00:46]} Qc7 {[%emt 0:03:22]} 17. Bxc5 {[%emt 0:02:41]} Nxg4 {[%emt 0:01:04]} 18. h3 {[%emt 0:04:14]} Nh6 {[%emt 0:02:10]} 19. Bxf8 {[%emt 0:02:18]} Bxf8 {[%emt 0:01:19]} 20. Qe1 {[%emt 0:00:49]} Nf5 {[%emt 0:00:54]} 21. Nh4 {[%emt 0:00:31]} Nd4 {[%emt 0:01:34]} 22. Qf2 {[%emt 0:00:25]} c5 {[%emt 0:02:24]} 23. c3 {[%emt 0:01:31]} Nb5 {[%emt 0:00:56]} 24. Ng2 {[%emt 0:02:29]} Ba6 {[%emt 0:01:58]} 25. Rac1 {[%emt 0:09:47]} d4 {[%emt 0:03:40]} 26. cxd4 {[%emt 0:00:31]} Nxd4 {[%emt 0:00:17]} 27. Qxd4 {[%emt 0:00:24]} 1-0

[Event "Catalan Youth-ch 2020"]
[Site "Salou"]
[Date "2020.09.07"]
[Round "4.6"]
[White "Roca Planas, Edgar"]
[Black "Alcala Gonzalez, Cesar"]
[Result "0-1"]
[ECO "B41"]
[WhiteElo "2059"]
[BlackElo "2026"]
[Annotator "NA"]
[PlyCount "64"]
[EventDate "2020.09.07"]
[EventType "swiss"]
[EventCountry "ESP"]
[SourceTitle "playchess.com"]
[Source "ChessBase"]
[SourceQuality "1"]
[TimeControl "5400+30"]

1. e4 {[%emt 0:00:00]} c5 {[%emt 0:00:00]} 2. Nf3 {[%emt 0:00:00]} e6 {[%emt 0:00:00]} 3. d4 {[%emt 0:00:00]} cxd4 {[%emt 0:00:00]} 4. Nxd4 {[%emt 0:00:00]} a6 {[%emt 0:00:00]} 5. c4 {[%emt 0:00:00]} Nf6 {[%emt 0:00:04]} 6. Nc3 {[%emt 0:00:00]} Qc7 {[%emt 0:00:05]} 7. a3 {[%emt 0:00:00]} b6 {[%emt 0:02:56]} 8. g3 {[%emt 0:01:22]} Bb7 {[%emt 0:01:52]} 9. Qd3 {[%emt 0:00:06]} Nc6 {[%emt 0:06:01]} 10. Nf3 {[%emt 0:06:20]} d6 {[%emt 0:03:54]} 11. b3 {[%emt 0:03:44]} Ne5 {[%emt 0:09:46]} 12. Nxe5 {[%emt 0:06:56]} dxe5 {[%emt 0:00:05]} 13. Bb2 {[%emt 0:02:32]} h5 {[%emt 0:09:44]} 14. Bg2 {[%emt 0:03:37]} Rd8 {[%emt 0:01:00]} 15. Qc2 {[%emt 0:01:53]} Bc5 {[%emt 0:13:15]} 16. O-O {[%emt 0:00:12]} Bc6 {[%emt 0:04:04]} 17. Ne2 {[%emt 0:04:57]} Qb7 {[%emt 0:09:52]} 18. b4 {[%emt 0:01:52]} Bxe4 {[%emt 0:02:28]} 19. Bxe4 {[%emt 0:07:47]} Nxe4 {[%emt 0:00:43]} 20. bxc5 {[%emt 0:02:23]} Rd2 {[%emt 0:22:13]} 21. Qb3 {[%emt 0:25:46]} Rxe2 {[%emt 0:00:00]} 22. Bc1 {[%emt 0:08:39]} Nxc5 {[%emt 0:00:00]} 23. Qd1 {[%emt 0:01:08]} Re4 {[%emt 0:00:00]} 24. Qc2 {[%emt 0:00:58]} h4 {[%emt 0:00:00]} 25. f3 {[%emt 0:01:23]} hxg3 {[%emt 0:00:00]} 26. hxg3 {[%emt 0:00:05]} Rg4 {[%emt 0:00:00]} 27. Kg2 {[%emt 0:02:49]} f5 {[%emt 0:00:00]} 28. Be3 {[%emt 0:01:15]} f4 {[%emt 0:00:11]} 29. Bf2 {[%emt 0:00:07]} e4 {[%emt 0:01:38]} 30. Be1 {[%emt 0:03:20]} exf3+ {[%emt 0:01:42]} 31. Rxf3 {[%emt 0:00:10]} Ne4 {[%emt 0:02:37]} 32. Qe2 {[%emt 0:01:52]} Ng5 {[%emt 0:00:39]} 0-1

[Event "Catalan Youth-ch 2020"]
[Site "Salou"]
[Date "2020.09.07"]
[Round "4.6"]
[White "Ortiz Pardo, Pol"]
[Black "Iborra Polo, Eric"]
[Result "0-1"]
[ECO "C01"]
[WhiteElo "1700"]
[BlackElo "1640"]
[Annotator "NA"]
[PlyCount "50"]
[EventDate "2020.09.07"]
[EventType "swiss"]
[EventCountry "ESP"]
[SourceTitle "playchess.com"]
[Source "ChessBase"]
[SourceQuality "1"]
[TimeControl "5400+30"]

1. e4 {[%emt 0:00:00]} e6 {[%emt 0:00:00]} 2. d4 {[%emt 0:00:00]} d5 {[%emt 0:00:03]} 3. Bd3 {[%emt 0:00:08]} dxe4 {[%emt 0:00:09]} 4. Bxe4 {[%emt 0:00:07]} Nf6 {[%emt 0:00:05]} 5. Bf3 {[%emt 0:01:15]} c5 {[%emt 0:00:55]} 6. Ne2 {[%emt 0:00:51]} e5 {[%emt 0:00:53]} 7. dxe5 {[%emt 0:02:29]} Qxd1+ {[%emt 0:00:19]} 8. Kxd1 {[%emt 0:00:06]} Ng4 {[%emt 0:00:13]} 9. Bxg4 {[%emt 0:04:06]} Bxg4 {[%emt 0:00:17]} 10. Be3 {[%emt 0:00:41]} Nc6 {[%emt 0:00:45]} 11. Nd2 {[%emt 0:03:46]} Nxe5 {[%emt 0:04:59]} 12. h3 {[%emt 0:04:20]} Bd7 {[%emt 0:01:03]} 13. Nc3 {[%emt 0:01:48]} O-O-O {[%emt 0:00:57]} 14. Ke2 {[%emt 0:01:54]} Bf5 {[%emt 0:00:57]} 15. Rac1 {[%emt 0:01:07]} Be7 {[%emt 0:01:50]} 16. g4 {[%emt 0:01:43]} Be6 {[%emt 0:01:40]} 17. b3 {[%emt 0:01:43]} Rhe8 {[%emt 0:02:45]} 18. f4 {[%emt 0:01:30]} Nc6 {[%emt 0:00:11]} 19. Nf3 {[%emt 0:08:55]} Nd4+ {[%emt 0:02:36]} 20. Bxd4 {[%emt 0:01:42]} cxd4 {[%emt 0:00:05]} 21. Nb1 {[%emt 0:01:45]} Bd5 {[%emt 0:03:02]} 22. Kf2 {[%emt 0:00:31]} Bc5 {[%emt 0:00:46]} 23. Nbd2 {[%emt 0:01:37]} Re3 {[%emt 0:02:27]} 24. Rhe1 {[%emt 0:06:24]} Rde8 {[%emt 0:00:58]} 25. Ne5 {[%emt 0:14:35]} Rxh3 {[%emt 0:14:40]} 0-1

[Event "Catalan Youth-ch 2020"]
[Site "Salou"]
[Date "2020.09.07"]
[Round "4.7"]
[White "Moya Nunez, Pau Salvador"]
[Black "Pujol Biosca, Joan"]
[Result "1-0"]
[ECO "B40"]
[WhiteElo "1990"]
[BlackElo "1697"]
[Annotator "NA"]
[PlyCount "59"]
[EventDate "2020.09.07"]
[EventType "swiss"]
[EventCountry "ESP"]
[SourceTitle "playchess.com"]
[Source "ChessBase"]
[SourceQuality "1"]
[TimeControl "5400+30"]

1. e4 {[%emt 0:00:00]} c5 {[%emt 0:00:00]} 2. Nf3 {[%emt 0:00:00]} e6 {[%emt 0:00:00]} 3. d4 {[%emt 0:00:00]} cxd4 {[%emt 0:00:14]} 4. Nxd4 {[%emt 0:00:08]} Nf6 {[%emt 0:00:00]} 5. Nc3 {[%emt 0:00:00]} Bb4 {[%emt 0:00:27]} 6. e5 {[%emt 0:00:14]} Nd5 {[%emt 0:00:30]} 7. Bd2 {[%emt 0:00:30]} Nxc3 {[%emt 0:00:30]} 8. bxc3 {[%emt 0:00:30]} Be7 {[%emt 0:00:30]} 9. Qg4 {[%emt 0:07:14]} g6 {[%emt 0:02:34]} 10. Bd3 {[%emt 0:03:39]} Nc6 {[%emt 0:01:31]} 11. Nxc6 {[%emt 0:02:27]} bxc6 {[%emt 0:01:55]} 12. h4 {[%emt 0:01:45]} Qc7 {[%emt 0:06:21]} 13. Qg3 {[%emt 0:06:13]} f5 {[%emt 0:06:43]} 14. h5 {[%emt 0:04:43]} g5 {[%emt 0:04:57]} 15. h6 {[%emt 0:04:01]} Rg8 {[%emt 0:06:49]} 16. Rh5 {[%emt 0:07:21]} Kf7 {[%emt 0:04:58]} 17. Bxf5 {[%emt 0:02:39]} Qb6 {[%emt 0:01:25]} 18. Bxh7 {[%emt 0:01:07]} Rh8 {[%emt 0:10:40]} 19. Bd3 {[%emt 0:01:46]} Bb7 {[%emt 0:00:58]} 20. Qf3+ {[%emt 0:00:57]} Ke8 {[%emt 0:00:54]} 21. Bxg5 {[%emt 0:01:13]} Bxg5 {[%emt 0:00:00]} 22. Rxg5 {[%emt 0:00:00]} Kd8 {[%emt 0:09:26]} 23. Ke2 {[%emt 0:01:13]} Kc7 {[%emt 0:00:00]} 24. h7 {[%emt 0:01:59]} Ba6 {[%emt 0:01:33]} 25. Rg7 {[%emt 0:00:47]} Raf8 {[%emt 0:00:35]} 26. Qe3 {[%emt 0:00:47]} Bxd3+ {[%emt 0:00:15]} 27. Kxd3 {[%emt 0:01:43]} Qa6+ {[%emt 0:00:08]} 28. Kd2 {[%emt 0:04:49]} Qa4 {[%emt 0:03:56]} 29. Qd4 {[%emt 0:01:27]} Qa6 {[%emt 0:01:44]} 30. Rb1 {[%emt 0:03:55]} 1-0